Cogmind - Beta 13 @@@ ROGUE MODE // 2024.04.23 @ 19:20:12 Player: GR4C3 Result: Destroyed by P-60 Hacker with Shock Rifle Performance ------------- Evolutions (3) 1500 Regions Visited (4) 800 Robots Destroyed (88) 440 Value Destroyed (2829) 2829 Prototype IDs (3) 60 Alien Tech Used (0) 0 Bonus (453) 453 TOTAL SCORE: 6082 Bonus ------- High Alert Combat Kills 453 Cogmind --------- Core Integrity 0/700 Matter 220/300 Energy 29/100 System Corruption 15% Temperature Hot (214) Movement Core (150) Ox2 Location -7/Factory Parts ------- > --- POWER (2) -------- (None) > --- PROPULSION (4) --- (None) > --- UTILITY (5) ------ Hacking Suite System Shield > --- WEAPON (2) ------- Heavy Particle Cannon Power Maul > --- INVENTORY (5) ---- Armored Wheel Armored Wheel Coolant Injector Gatling Laser Heavy Ion Cannon Peak State ------------ > --- POWER ------------ Deuterium Engine Nuclear Core > --- PROPULSION ------- Medium Treads Armored Wheel Armored Wheel Armored Wheel > --- UTILITY ---------- Large Storage Unit Improved Sensor Array Hacking Suite System Shield Long-range Tractor Beam > --- WEAPON ----------- Advanced Assault Cannon Heavy Rocket Launcher > --- INVENTORY -------- Armored Wheel Armored Wheel Coolant Injector Improved Light Armor Plating Arc Projector Gatling Laser EM Pulse Cannon Heavy Particle Cannon Plasma Cannon Heavy Ion Cannon Gauss Rifle Flak Gun Precision Assault Rifle Advanced Assault Cannon Power Maul [Rating: 42] Favorites ----------- Power Improved Ion Engine Engine Improved Ion Engine Power Core Nuclear Core Propulsion Armored Wheel Treads Medium Treads Leg Titanium Leg Wheel Armored Wheel Flight Unit Improved Flight Unit Utility Large Storage Unit Device Sensor Array Storage Large Storage Unit Processor Improved Melee Analysis Suite Hackware Hacking Suite Protection Improved Propulsion Shielding Weapon Advanced Assault Cannon Energy Gun Beam Rifle Energy Cannon Heavy Particle Cannon Ballistic Gun Autogun Ballistic Cannon Advanced Assault Cannon Launcher Heavy Rocket Launcher Impact Weapon Power Maul Build | -11 -10 -9 -8 -7 ------- Run | Yrd Mat Mat Mat Fac Slots Evolved 6 | . . 2 2 2 Power 1 | . . . 1 . Propulsion 2 | . . 2 . . Utility 3 | . . . 1 2 Weapon . | . . . . . Parts Attached 121 | 10 10 46 25 30 Power 15 | 1 2 7 3 2 Engine 14 | 1 2 7 3 1 Core 1 | . . . . 1 Reactor . | . . . . . Propulsion 33 | 4 4 16 4 5 Treads 2 | 1 . . . 1 Leg 7 | 3 . 4 . . Wheel 8 | . . . 4 4 Hover . | . . . . . Flight 16 | . 4 12 . . Utility 18 | 3 1 5 5 4 Device 7 | 2 1 1 2 1 Storage 4 | 1 . 2 1 . Processor 2 | . . 1 1 . Hackware 2 | . . . . 2 Protection 3 | . . 1 1 1 Artifact . | . . . . . Weapon 55 | 2 3 18 13 19 Energy Gun 13 | 2 1 5 1 4 Energy Cannon 8 | . . 4 2 2 Ballistic Gun 16 | . 1 7 5 3 Ballistic Cannon 5 | . . . 1 4 Launcher 11 | . 1 2 3 5 Special Weapon . | . . . . . Impact Weapon 2 | . . . 1 1 Slashing Weapon . | . . . . . Piercing Weapon . | . . . . . Special Melee Weapon . | . . . . . Unidentified Prototypes 2 | . 1 1 . . Parts Lost 31 | . . 10 4 17 Power 8 | . . 3 2 3 Propulsion 5 | . . 1 . 4 Utility 7 | . . 2 1 4 Weapon 11 | . . 4 1 6 Highest Loss Streak 15 | . . 4 2 15 To Critical Strikes . | . . . . . Average Slot Usage (%) 96 | . 100 94 96 96 Engine 11 | . 14 10 16 6 Core 2 | . . . . 6 Leg 9 | . 5 1 27 . Wheel 11 | . . . 8 28 Flight 13 | . 22 39 . . Device 12 | . 28 5 8 13 Storage 6 | . . 7 9 6 Hackware 4 | . . . . 14 Protection 3 | . . 5 7 . Energy Gun 4 | . 14 3 3 . Energy Cannon 1 | . . 2 2 . Ballistic Gun 6 | . 10 11 6 1 Ballistic Cannon 2 | . . . 1 7 Launcher 3 | . 2 3 3 3 Naked Turns . | . . . . . Heaviest Build 51 | 9 9 21 47 51 Greatest Support 68 | 20 20 68 68 48 Greatest Overweight (x) 11 | . 1 6 3 11 Average Overweight (x) . | . . . . . Largest Inventory Capacity 15 | 8 5 10 15 15 Average Capacity 10 | 5 5 7 13 14 Most Carried 15 | 5 5 8 15 15 Average Carried 9 | 3 4 5 10 14 Final Capacity 15 | 5 5 8 15 5 Final Carried 15 | 3 5 6 15 5 Class Distribution -------------------- 58% | Mutant 26% | Hacker-Mutant 13% | Sprinter Dominant Class ---------------- Mutant | -10/Materials Sprinter | -9/Materials Mutant | -8/Materials Hacker-Mutant | -7/Factory Resources | -11 -10 -9 -8 -7 ----------- Run | Yrd Mat Mat Mat Fac Matter Collected 2473 | 290 188 790 593 612 Remotely 612 | . . . . 612 Salvage Created 2300 | 79 374 697 621 529 Parts 159 | 5 40 58 28 28 Haulers Intercepted . | . . . . . Recyclers Shooed 5 | . 1 2 2 . Parts Field Recycled . | . . . . . Retrieved Matter . | . . . . . Parts Self-Destructed . | . . . . . Prevented . | . . . . . Kills | -11 -10 -9 -8 -7 ------- Run | Yrd Mat Mat Mat Fac Combat Hostiles Destroyed 68 | . 10 27 13 18 Guns 25 | . 9 9 5 2 Cannons 4 | . . 1 1 2 AOE 35 | . 1 17 3 14 Classes Destroyed 14 | 2 6 1 2 3 Worker 4 | . 2 . 1 1 Builder 1 | . 1 . . . Tunneler 1 | 1 . . . . Recycler 3 | 1 1 . 1 . Operator 3 | . 2 1 . . Watcher 8 | . 2 2 3 1 Swarmer 18 | . 5 10 . 3 Grunt 30 | . 5 10 7 8 Brawler 2 | . . . . 2 Protector 1 | . . . 1 . Sentry 12 | . . 7 4 1 Specialist 1 | . . . . 1 Hunter 2 | . . . 1 1 Programmer 2 | . . . . 2 Best Kill Streak 9 | 1 5 5 4 9 Combat Bots Only 8 | . 3 5 4 8 Max Kills in Single Turn 4 | 1 3 3 1 4 Gunslinging . | . . . . . Exploded 3 | . 1 3 1 2 Melee . | . . . . . Uniques/NPCs Destroyed . | . . . . . Combat | -11 -10 -9 -8 -7 -------- Run | Yrd Mat Mat Mat Fac Hostile Shots Fired 523 | . 41 129 71 282 Missed 156 | . 17 42 16 81 Damage Taken 5547 | . 290 1306 1027 2924 Core 1297 | . 94 234 260 709 Absorbed by Shields . | . . . . . Redirected to Shielding 138 | . . 36 102 . Regen/Repaired (Parts) 134 | . . 116 18 . Core Remaining (%) 63 | 100 62 41 52 . Volleys Fired 201 | 5 38 81 41 36 Largest 2 | 2 2 2 2 2 Hottest 155 | 80 80 124 114 155 Shots Fired 381 | 10 76 159 72 64 Gun 273 | 10 66 124 53 20 Cannon 48 | . . 9 9 30 Launcher 60 | . 10 26 10 14 Special . | . . . . . Kinetic 185 | . 22 90 32 41 Thermal 123 | 10 44 36 29 4 Explosive 60 | . 10 26 10 14 Electromagnetic 13 | . . 7 1 5 Robot Hit Streak 11 | 4 5 11 10 10 Robot Miss Streak 6 | 4 3 6 5 3 Penetration Max . | . . . . . Secondary Targets 2 | . 1 1 . . Max Gunslinging Chain 1 | . 1 1 . . Shots Hit Robots 233 | 5 44 98 46 40 Core Hits 167 | 3 28 53 35 48 Critical Kills . | . . . . . Critical Parts Destroyed 6 | . . . 5 1 Critical Strikes 9 | . . 1 7 1 Burn 3 | . . 1 2 . Destroy 2 | . . . 1 1 Smash 4 | . . . 4 . Melee Attacks 7 | . . . 6 1 Impact 7 | . . . 6 1 Slashing . | . . . . . Piercing . | . . . . . Sneak Attacks . | . . . . . Combat Hostiles . | . . . . . Follow-up Attacks . | . . . . . Damage Inflicted 7557 | 54 805 2423 1726 2549 Guns 2348 | 54 410 1071 510 303 Cannons 545 | . . 61 78 406 Explosions 4162 | . 395 1291 777 1699 Melee 393 | . . . 337 56 Ramming 109 | . . . 24 85 Kinetic 1887 | . 89 862 325 611 Thermal 1296 | 54 321 324 395 202 Explosive 3732 | . 395 1144 617 1576 Electromagnetic 140 | . . 93 28 19 Impact 393 | . . . 337 56 Slashing . | . . . . . Piercing . | . . . . . Highest Corruption 15 | . . . . 15 Average Corruption 2 | . . . . 2 Corruption Purged . | . . . . . Corruption Blocked . | . . . . . Effects 6 | . . . . 6 Message Errors 1 | . . . . 1 Matter Fused 1 | . . . . 1 Heat Flow Errors 1 | . . . . 1 Parts Fused 1 | . . . . 1 Data Loss (minor) 2 | . . . . 2 Overload Shots . | . . . . . Overflow Damage 366 | . 17 99 210 40 Projectiles . | . . . . . Explosions 165 | . 17 99 9 40 Melee 201 | . . . 201 . Knockbacks 7 | . . . 2 5 Impact 3 | . . . 2 1 Kinetic 4 | . . . . 4 Secondary . | . . . . . Self-Inflicted Damage 491 | . 57 133 142 159 Shots 15 | . 4 2 5 4 Rammed 5 | . . . . 5 Targets Rammed 9 | . . . 4 5 Kicked 4 | . . . 4 . Crushed . | . . . . . Highest Temperature 294 | 74 144 294 204 214 Average Temperature 58 | 34 37 75 60 36 Received Heat Transfer 1134 | . 93 456 405 180 Siege Activations . | . . . . . Robots Corrupted 1 | . . . 1 . Combat Hostiles 1 | . . . 1 . Parts Fried 5 | . . . 5 . Impact Corruptions 7 | . . . 7 . Robots Melted . | . . . . . Combat Hostiles . | . . . . . Parts Melted 1 | . . . 1 . Heat Transferred 2444 | 125 736 581 803 199 Parts Sabotaged . | . . . . . Parts Stolen . | . . . . . Parts Stripped . | . . . . . Power Chain Reactions 1 | . . 1 . . Alert | -11 -10 -9 -8 -7 ------- Run | Yrd Mat Mat Mat Fac Peak Influence 976 | 10 371 976 654 555 Initial 352 | . 6 122 352 269 Average 427 | 7 203 632 496 363 Maximum Alert Level 3 | . 1 3 2 2 Low Security (%) 9 | 100 30 3 . . Level 1 32 | . 69 17 7 57 Level 2 46 | . . 36 92 42 Level 3 11 | . . 43 . . Level 4 . | . . . . . Level 5 . | . . . . . High Security . | . . . . . Max Security . | . . . . . Squads Dispatched 11 | . 3 3 2 3 Investigation 1 | . . 1 . . Extermination 2 | . . . . 2 Reinforcement 7 | . 3 2 1 1 Assault 1 | . . . 1 . Garrison . | . . . . . Intercept . | . . . . . Searches Triggered . | . . . . . Construction Impeded . | . . . . . Haulers Reinforced . | . . . . . Active Scanning Responses . | . . . . . Cargo Convoy Interrupts 1 | . . . . 1 Stealth | -11 -10 -9 -8 -7 --------- Run | Yrd Mat Mat Mat Fac Distress Signals 2 | . 1 . 1 . Communications Jammed . | . . . . . Distress Signals . | . . . . . Times Spotted 110 | . 19 37 22 32 Peak Tracking Total 12 | . 4 4 5 12 Tactical Retreats 4 | . . 3 1 . Traps | -11 -10 -9 -8 -7 ------- Run | Yrd Mat Mat Mat Fac Traps Triggered 3 | . . 1 . 2 Indirectly . | . . . . . Trap Hack Attempts . | . . . . . Triggered . | . . . . . Disarmed 6 | . . . . 6 Reprogrammed . | . . . . . Reused . | . . . . . Traps Extracted . | . . . . . Installed . | . . . . . Triggered . | . . . . . Machines | -11 -10 -9 -8 -7 ---------- Run | Yrd Mat Mat Mat Fac Machines Disabled 13 | . 3 4 4 2 Max in Single Turn 2 | . 1 2 1 2 Machines Repaired . | . . . . . Machines Dismantled . | . . . . . Machines Sabotaged . | . . . . . Overloaded Fab Kills . | . . . . . Hacking | -11 -10 -9 -8 -7 --------- Run | Yrd Mat Mat Mat Fac Machines Accessed 19 | . 5 7 2 5 Terminals 10 | . 4 3 . 3 Fabricators . | . . . . . Repair Stations 5 | . . 2 2 1 Recycling Units 2 | . 1 1 . . Scanalyzers 1 | . . 1 . . Garrison Access 1 | . . . . 1 Total Hacks 38 | . 6 13 4 15 Successful 23 | . 3 9 3 8 Failed 14 | . 3 4 1 6 Catastrophic . | . . . . . Database Lockouts 1 | . . . . 1 Manual . | . . . . . Terminals 20 | . 5 5 . 10 Fabricators . | . . . . . Repair Stations 12 | . . 5 4 3 Recycling Units 2 | . 1 1 . . Scanalyzers 2 | . . 2 . . Garrison Access 2 | . . . . 2 Terminal Hacks 12 | . 2 3 . 7 Record 5 | . . 1 . 4 Open DSF 1 | . . . . 1 Locate Traps 2 | . 1 . . 1 Disarm Traps 1 | . . . . 1 Dispatch Records 1 | . 1 . . . Zone Layout 2 | . . 2 . . Fabricator Hacks . | . . . . . Repair Station Hacks 8 | . . 4 3 1 Scan Component 5 | . . 2 2 1 Repair 3 | . . 2 1 . Recycling Unit Hacks 2 | . 1 1 . . Report Inventory 2 | . 1 1 . . Scanalyzer 1 | . . 1 . . Insert Component 1 | . . 1 . . Garrison Access Hacks . | . . . . . Unauthorized Hacks . | . . . . . Terminals . | . . . . . Fabricators . | . . . . . Repair Stations . | . . . . . Recycling Units . | . . . . . Scanalyzers . | . . . . . Garrison Access . | . . . . . Data Cores Recovered 3 | . 2 1 . . Used . | . . . . . Hacking Detections 11 | . 3 4 1 3 Full Trace Events . | . . . . . Feedback Events . | . . . . . Feedback Blocked . | . . . . . Robot Schematics Acquired . | . . . . . Robots Built . | . . . . . Authchips . | . . . . . Time . | . . . . . Total Robot Build Rating . | . . . . . Part Schematics Acquired . | . . . . . Parts Built . | . . . . . Authchips . | . . . . . Time . | . . . . . Total Part Build Rating . | . . . . . Parts Repaired 3 | . . 2 1 . Time 109 | . . 83 26 . Parts Recycled . | . . . . . Recycled Matter . | . . . . . Retrieved Matter . | . . . . . Retrieved Components . | . . . . . Parts Scanalyzed . | . . . . . Part Schematics Acquired . | . . . . . Parts Damaged . | . . . . . Bothacking | -11 -10 -9 -8 -7 ------------ Run | Yrd Mat Mat Mat Fac Used RIF Installer . | . . . . . Robots Hacked . | . . . . . Non-combat . | . . . . . Combat . | . . . . . Robot Hacks Applied . | . . . . . Relay Couplers Released . | . . . . . Fabnet Peak Effective % . | . . . . . Robots Rewired . | . . . . . Allies Hacked . | . . . . . Hacks Repelled . | . . . . . Allies | -11 -10 -9 -8 -7 -------- Run | Yrd Mat Mat Mat Fac Total Allies . | . . . . . Largest Group . | . . . . . Highest-Rated Group . | . . . . . Highest-Rated Ally . | . . . . . Total Orders . | . . . . . Ally Attacks . | . . . . . Total Damage . | . . . . . Kills . | . . . . . Allies Corrupted . | . . . . . Allies Melted . | . . . . . Intel | -11 -10 -9 -8 -7 ------- Run | Yrd Mat Mat Mat Fac Robot Analysis Total . | . . . . . Derelict Logs Recovered . | . . . . . Drone Launches . | . . . . . Drone Recoveries . | . . . . . Exploration | -11 -10 -9 -8 -7 ------------- Run | Yrd Mat Mat Mat Fac Turns Passed 3524 | 176 482 892 950 1024 Spaces Moved 3555 | 123 800 1170 602 860 Core 17 | 11 . 3 . 3 Treads 6 | 3 . . . 3 Legs 596 | 109 40 24 423 . Wheels 1033 | . . . 179 854 Hover . | . . . . . Flight 1903 | . 760 1143 . . Fastest Speed 27 | 50 37 27 90 90 Average Speed 70 | 114 41 42 118 97 Slowest Speed 600 | 160 120 350 135 600 Overloaded Moves . | . . . . . Propulsion Burnouts . | . . . . . Robots Hopped 6 | . 5 1 . . Cave-ins Triggered . | . . . . . Exploration Rate (%) 51 | 6 96 94 37 25 Regions Visited 4 Branch Regions . Pre-discovered Areas . | . . . . . Known Exits Taken . | . . . . . Unknown Exits Taken 4 | 1 1 1 1 . Scrap Searched . | . . . . . Spaces Dug 20 | . . 6 7 7 Terrain Destroyed 537 | . 51 184 92 210 Melee . | . . . . . Projectile 14 | . . . 6 8 AOE 523 | . 51 184 86 202 Terrain Rammed . | . . . . . Walls Destroyed . | . . . . . Machines Disabled . | . . . . . Actions | -11 -10 -9 -8 -7 --------- Run | Yrd Mat Mat Mat Fac Total 4163 | 146 877 1409 756 975 Wait 120 | . 5 61 44 10 Move 3539 | 122 789 1167 601 860 Hop 6 | . 5 1 . . Pick Up 90 | 8 15 28 24 15 Fast Attach 12 | 3 1 7 . 1 Attach 42 | 5 1 16 10 10 Detach 1 | . . 1 . . Swap 67 | 2 8 23 15 19 Drop 61 | 1 15 24 11 10 Fire 201 | 5 38 81 41 36 Melee 7 | . . . 6 1 Ram 5 | . . . . 5 Kick 4 | . . . 4 . Crush . | . . . . . Escape Stasis 8 | . . . . 8 Rewire . | . . . . . Trap . | . . . . . Miscellaneous . | . . . . . Route ------- -11/Scrapyard -10/Materials (discovered 4 exits: *Mat x3 / [*Min]) -9/Materials (discovered 5 exits: *Mat x3 / [*Min x2]) -8/Materials -7/Factory (discovered 2 exits: [*Fac x2]) History --------- Turn | Location | Event 12 | -11/Scrapyard | Discovered new exit (range 15) 177 | -11/Scrapyard | Entered Materials 364 | -10/Materials | Build established: Mutant 379 | -10/Materials | Discovered new exit (range 12) 407 | -10/Materials | Discovered new exit (range 15) 480 | -10/Materials | Discovered new exit (range 7) 617 | -10/Materials | Discovered new exit (range 16) 659 | -10/Materials | Entered another Materials area 659 | -9/Materials | Evolved 2 slots: Propulsion x2 692 | -9/Materials | Discovered new exit (range 15) 796 | -9/Materials | Discovered new exit (range 5) 854 | -9/Materials | Discovered new exit (range 11) 985 | -9/Materials | Repaired Imp. Flight Unit 1065 | -9/Materials | Lost 4 parts (1p3w) 1124 | -9/Materials | Discovered new exit (range 10) 1189 | -9/Materials | Discovered new exit (range 14) 1236 | -9/Materials | Repaired Hvy. Assault Rifle 1268 | -9/Materials | Build established: Sprinter 1448 | -9/Materials | Core integrity fell below 50% 1551 | -9/Materials | Entered another Materials area 1551 | -8/Materials | Evolved 2 slots: Power x1, Utility x1 1595 | -8/Materials | Build established: Mutant 1949 | -8/Materials | Repaired Sensor Array 2004 | -8/Materials | Discovered new exit (range 15) 2351 | -8/Materials | First assault squad dispatched 2501 | -8/Materials | Entered Factory 2501 | -7/Factory | Evolved 2 slots: Utility x2 2808 | -7/Factory | Build established: Hacker-Mutant 3129 | -7/Factory | Destroyed 8 combat bots 3158 | -7/Factory | Discovered new exit (range 16) 3314 | -7/Factory | Central database locked down 3381 | -7/Factory | Discovered new exit (range 5) 3457 | -7/Factory | Cargo convoy interrupted 3487 | -7/Factory | System corruption reached 10% 3493 | -7/Factory | Core integrity fell below 50% 3510 | -7/Factory | Core integrity fell below 20% 3525 | -7/Factory | Destroyed by P-60 Hacker with Shock Rifle Last Messages --------------- 03516_ U-05 Engineer lays Concrete. 03516_ Penetrated by Slug. 03517_ U-05 Engineer lays Concrete. 03518_ K-01 Serf collects debris. 03518_ Penetrated by Slug. 03518_ U-05 Engineer lays Concrete. 03519_ Lrg. Storage Unit destroyed. 03519_ U-05 Engineer lays Concrete. 03521_ The unstable cave ceiling collapses. 03521_ U-05 Engineer lays Concrete. 03521_ K-01 Serf collects debris. 03522_ Penetrated by Slug. 03522_ U-05 Engineer lays Concrete. 03523_ P-60 Hacker resets H-55 Commando, system corruption cleaned. 03523_ U-05 Engineer lays Concrete. 03524_ System corrupted: Heat flow error (+248). 03524_ U-05 Engineer lays Concrete. 03524_ K-01 Serf collects debris. 03525_ U-05 Engineer builds a Wall. Map ----- +----------------------------------------------------+ | ???????????????????????????????????? | | ???????????????????????????????????? | | ???????????????????????????????????? | | ???????????????????????????????????? | | ???????????????????????????????????? | | ???????????????????????????????????? | | ???????????????????????????????????? | | ???????????????????????????????????? | | ???????????????????????????????????? | | ???????????????????????????????????? | | ???????????????????????????????????? | | ???????????????????????????????????? | | ????????????????? ?????????????????? | | ????????########?= ????????????????? | | ??????### # # ?????????????????? | | ??????# # ??????????????????? | | ?????##;;;;;;;;;##?????????????????? | | ?????#; k ; #?????????????????? | | ????##; ; #?????????????????? | | ????? ; ; #?????????????????? | | ?????#; ;#??????????????????? | | ??????#[[ * ;#??????????????????? | | ??????# ##### ##????????????? | | ??????#"R* ipp + "% ?????? | | ??????#"""]h%h ##### ##????????????? | | ??????# [][@hui###?????????????????? | | ??????##### ## ##????????????????? | | ?????????# [ #????????????????? | | ????????# [ ## ##????????????? | | ????????## !%!% +????????????? | | ????????# = ######????????????? | | ???????# ## #????????????????? | | ???????##?# ## ####????????????????? | | ??????????#### ####????????????????? | | ?????????????#+########????????????? | | ?????????????# #????????????? | | ?????????????# !!/#????????????? | | ?????????????# !!/#????????????? | | ?????????????# !//#????????????? | | ?????????????# #????????????? | | ?????????????# """ #????????????? | | ############## """ #????????????? | | # ! # """ #????????????? | | # # !#????????????# | | # #+##+#####???#####????# | | # # #????# ###### | | # # #????# | | # ! + < #????# ###### | | # "" "" # #????## ##????# | | # "" "" # #?????# #???### | +----------------------------------------------------+ Best States ------------- Heat Dissipation 34 Energy Generation 23 Energy Capacity 430 Matter Stores 300 Matter Capacity 300 Sight Range 16 Robot Scan Range 15 Terrain Scan Range 16 Terrain Scan Density 10 Armor Coverage 150 Propulsion Shielding 66 Evasion (%) 63 Targeting Accuracy 5 Melee Accuracy 6 Recoil Reduction 1 Offensive Hacking 10 Defensive Hacking 10 Item Schematics ----------------- None Robot Schematics ------------------ None Fabricated ------------ Nothing Alien Tech Used ----------------- None Achievements -------------- None Challenges ------------ None Game ------ Seed GravitonGaussFemtoactuators Manual? 0 Play Time 01:12:40 Cumulative 45.2 hours Start 2024.04.22 @ 21:25:46 End 2024.04.23 @ 19:20:12 Sessions 5 Manual Loads 0 Difficulty Rogue Special Mode None Game No. 35 Rogue 21 Adventurer 14 Explorer 0 Win Type - Total 0 Types 0/0/0/0/0/0/0/0/0 Lore% 20 Gallery% 31 Achievement% 19 Wizard Run 0 Options --------- Layout 1 ASCII 0 Keyboard 0 Movement Mouse Keybinds 0 Fullscreen 2 Font 20/SmallcapsGlow Map View 54x42 Zoom Use 0% Tactical HUD 1 Map Filters NONE Filters NONE Steam 1 RUN: 6be88922-980b-482b-8cdc-1a797783d7f3